[Event "Titled Tuesday Blitz August 1 Early 2023"]
[White "Ordekalog"]
[Black "Dimitrov, Atanas"]
[BlackFideId "2901315"]
[WhiteElo "2523"]
[BlackElo "2723"]
[Result "1/2-1/2"]
[Round "3"]
[TimeControl "180+1"]
[Date "2023.08.01"]
[WhiteClock "0:00:12"]
[BlackClock "0:00:07"]
[Board "65"]

1. d4 {[%clk 0:03:00]}  Nf6 {[%clk 0:02:59]} 2. c4 {[%clk 0:03:00]}  g6 {[%clk 0:02:59]} 3. Nc3 {[%clk 0:03:00]}  d5 {[%clk 0:03:00]} 4. cxd5 {[%clk 0:03:00]}  Nxd5 {[%clk 0:03:01]} 5. Na4 {[%clk 0:03:00]}  Bg7 {[%clk 0:02:55]} 6. e4 {[%clk 0:03:00]}  Nf6 {[%clk 0:02:54]} 7. f3 {[%clk 0:02:52]}  O-O {[%clk 0:02:54]} 8. Be3 {[%clk 0:02:51]}  b6 {[%clk 0:02:53]} 9. Rc1 {[%clk 0:02:49]}  Bb7 {[%clk 0:02:53]} 10. Bd3 {[%clk 0:02:48]}  Nbd7 {[%clk 0:02:53]} 11. Ne2 {[%clk 0:02:47]}  Rc8 {[%clk 0:02:48]} 12. O-O {[%clk 0:02:46]}  c6 {[%clk 0:02:46]} 13. Qd2 {[%clk 0:02:45]}  e5 {[%clk 0:02:45]} 14. Rfd1 {[%clk 0:02:40]}  exd4 {[%clk 0:02:43]} 15. Nxd4 {[%clk 0:02:40]}  Qe7 {[%clk 0:02:40]} 16. Bf1 {[%clk 0:02:37]}  Rfd8 {[%clk 0:02:39]} 17. Qf2 {[%clk 0:02:33]}  Ne5 {[%clk 0:02:36]} 18. a3 {[%clk 0:02:32]}  Rd7 {[%clk 0:02:31]} 19. Nc3 {[%clk 0:02:27]}  Rcd8 {[%clk 0:02:28]} 20. h3 {[%clk 0:02:22]}  c5 {[%clk 0:02:16]} 21. Nc2 {[%clk 0:02:18]}  Nd3 {[%clk 0:02:00]} 22. Bxd3 {[%clk 0:02:17]}  Rxd3 {[%clk 0:02:01]} 23. Rxd3 {[%clk 0:02:17]}  Rxd3 {[%clk 0:02:02]} 24. Bg5 {[%clk 0:02:03]}  Qd7 {[%clk 0:01:51]} 25. Qh4 {[%clk 0:01:54]}  Ne8 {[%clk 0:01:47]} 26. Bf4 {[%clk 0:01:43]}  Nc7 {[%clk 0:01:26]} 27. Ne1 {[%clk 0:01:33]}  Rd4 {[%clk 0:01:21]} 28. Be3 {[%clk 0:01:28]}  Rd6 {[%clk 0:01:20]} 29. Bf4 {[%clk 0:01:24]}  Re6 {[%clk 0:01:18]} 30. Rd1 {[%clk 0:01:20]}  Bd4+ {[%clk 0:01:18]} 31. Kh1 {[%clk 0:01:18]}  Re8 {[%clk 0:01:14]} 32. Bxc7 {[%clk 0:01:12]}  Qxc7 {[%clk 0:01:14]} 33. Nb5 {[%clk 0:01:12]}  Qd7 {[%clk 0:01:10]} 34. Nxd4 {[%clk 0:01:12]}  cxd4 {[%clk 0:01:11]} 35. Qf6 {[%clk 0:01:11]}  Rd8 {[%clk 0:01:07]} 36. Nd3 {[%clk 0:01:07]}  Ba6 {[%clk 0:00:40]} 37. Kg1 {[%clk 0:01:05]}  Bxd3 {[%clk 0:00:33]} 38. Rxd3 {[%clk 0:01:04]}  h5 {[%clk 0:00:33]} 39. Kf2 {[%clk 0:01:03]}  Qc7 {[%clk 0:00:30]} 40. Rxd4 {[%clk 0:00:55]}  Qc2+ {[%clk 0:00:27]} 41. Kg3 {[%clk 0:00:55]}  Rxd4 {[%clk 0:00:22]} 42. Qxd4 {[%clk 0:00:54]}  Qc1 {[%clk 0:00:23]} 43. h4 {[%clk 0:00:42]}  Qe1+ {[%clk 0:00:22]} 44. Qf2 {[%clk 0:00:41]}  Qc1 {[%clk 0:00:23]} 45. Kh2 {[%clk 0:00:41]}  Qc7+ {[%clk 0:00:23]} 46. g3 {[%clk 0:00:41]}  Qc4 {[%clk 0:00:22]} 47. Kg2 {[%clk 0:00:41]}  Kh7 {[%clk 0:00:22]} 48. Qd2 {[%clk 0:00:41]}  b5 {[%clk 0:00:21]} 49. Kf2 {[%clk 0:00:41]}  a6 {[%clk 0:00:21]} 50. Qc3 {[%clk 0:00:41]}  Qe6 {[%clk 0:00:21]} 51. Kg2 {[%clk 0:00:38]}  Qd6 {[%clk 0:00:20]} 52. Qe3 {[%clk 0:00:37]}  Qd1 {[%clk 0:00:19]} 53. Qf2 {[%clk 0:00:34]}  Qd3 {[%clk 0:00:19]} 54. e5 {[%clk 0:00:33]}  a5 {[%clk 0:00:18]} 55. Qe1 {[%clk 0:00:31]}  Qc2+ {[%clk 0:00:15]} 56. Qf2 {[%clk 0:00:31]}  Qd3 {[%clk 0:00:13]} 57. f4 {[%clk 0:00:29]}  b4 {[%clk 0:00:14]} 58. axb4 {[%clk 0:00:28]}  axb4 {[%clk 0:00:15]} 59. Qa7 {[%clk 0:00:25]}  Qc2+ {[%clk 0:00:13]} 60. Kh3 {[%clk 0:00:25]}  Qf5+ {[%clk 0:00:13]} 61. Kh2 {[%clk 0:00:25]}  b3 {[%clk 0:00:14]} 62. Qb7 {[%clk 0:00:24]}  Qc2+ {[%clk 0:00:14]} 63. Kh3 {[%clk 0:00:23]}  Kg8 {[%clk 0:00:12]} 64. Qb8+ {[%clk 0:00:21]}  Kg7 {[%clk 0:00:13]} 65. Qb7 {[%clk 0:00:20]}  Qf5+ {[%clk 0:00:11]} 66. Kh2 {[%clk 0:00:20]}  Qc2+ {[%clk 0:00:12]} 67. Kh3 {[%clk 0:00:20]}  Qxb2 {[%clk 0:00:10]} 68. e6 {[%clk 0:00:20]}  Qf6 {[%clk 0:00:10]} 69. e7 {[%clk 0:00:20]}  Qe6+ {[%clk 0:00:11]} 70. f5 {[%clk 0:00:20]}  Qxf5+ {[%clk 0:00:11]} 71. Kg2 {[%clk 0:00:19]}  Qc2+ {[%clk 0:00:11]} 72. Kf3 {[%clk 0:00:19]}  b2 {[%clk 0:00:06]} 73. e8=Q {[%clk 0:00:16]}  Qf5+ {[%clk 0:00:07]} 74. Ke3 {[%clk 0:00:16]}  b1=Q {[%clk 0:00:07]} 75. Qexf7+ {[%clk 0:00:15]}  Qxf7 {[%clk 0:00:07]} 76. Qxb1 {[%clk 0:00:16]}  Qe6+ {[%clk 0:00:07]} 77. Kf2 {[%clk 0:00:16]}  Qf6+ {[%clk 0:00:07]} 78. Kg1 {[%clk 0:00:16]}  Qd4+ {[%clk 0:00:07]} 79. Kg2 {[%clk 0:00:15]}  Qe3 {[%clk 0:00:07]} 80. Qb7+ {[%clk 0:00:14]}  Kh6 {[%clk 0:00:08]} 81. Qf3 {[%clk 0:00:14]}  Qd2+ {[%clk 0:00:08]} 82. Kh3 {[%clk 0:00:14]}  Qd6 {[%clk 0:00:05]} 83. Kh2 {[%clk 0:00:14]}  Kg7 {[%clk 0:00:06]} 84. Qc3+ {[%clk 0:00:14]}  Qf6 {[%clk 0:00:06]} 85. Qc7+ {[%clk 0:00:13]}  Qf7 {[%clk 0:00:06]} 86. Qc3+ {[%clk 0:00:12]}  Qf6 {[%clk 0:00:07]} 87. Qc7+ {[%clk 0:00:12]}  Qf7 {[%clk 0:00:06]} 88. Qe5+ {[%clk 0:00:12]}  Qf6 {[%clk 0:00:07]} 89. Qc7+ {[%clk 0:00:12]} 1/2-1/2


[Site "https://www.chess.com"]

[Event "Titled Tuesday Blitz August 1 Early 2023"]
[White "nycjack1"]
[Black "Ardelean, George-Catalin"]
[BlackFideId "1207091"]
[WhiteElo "2523"]
[BlackElo "2709"]
[Result "0-1"]
[Round "3"]
[TimeControl "180+1"]
[Date "2023.08.01"]
[WhiteClock "0:00:10"]
[BlackClock "0:00:33"]
[Board "66"]

1. e4 {[%clk 0:03:00]}  c5 {[%clk 0:02:58]} 2. Nf3 {[%clk 0:02:58]}  Nc6 {[%clk 0:02:56]} 3. Bb5 {[%clk 0:02:57]}  g6 {[%clk 0:02:55]} 4. O-O {[%clk 0:02:56]}  Bg7 {[%clk 0:02:55]} 5. Re1 {[%clk 0:02:48]}  e5 {[%clk 0:02:53]} 6. c3 {[%clk 0:02:42]}  Nge7 {[%clk 0:02:50]} 7. d3 {[%clk 0:02:16]}  O-O {[%clk 0:02:49]} 8. Be3 {[%clk 0:02:14]}  d6 {[%clk 0:02:49]} 9. Bxc6 {[%clk 0:02:00]}  Nxc6 {[%clk 0:02:46]} 10. d4 {[%clk 0:02:00]}  exd4 {[%clk 0:02:46]} 11. cxd4 {[%clk 0:01:58]}  Bg4 {[%clk 0:02:46]} 12. Nbd2 {[%clk 0:01:34]}  cxd4 {[%clk 0:02:43]} 13. Bf4 {[%clk 0:01:34]}  Re8 {[%clk 0:02:32]} 14. h3 {[%clk 0:01:26]}  Be6 {[%clk 0:02:30]} 15. Nb3 {[%clk 0:01:20]}  d3 {[%clk 0:02:23]} 16. Qxd3 {[%clk 0:01:17]}  Bxb2 {[%clk 0:02:22]} 17. Rab1 {[%clk 0:01:14]}  Ne5 {[%clk 0:02:17]} 18. Qd1 {[%clk 0:01:03]}  Nxf3+ {[%clk 0:02:16]} 19. Qxf3 {[%clk 0:01:04]}  Be5 {[%clk 0:02:16]} 20. Be3 {[%clk 0:01:00]}  Qf6 {[%clk 0:02:04]} 21. Qxf6 {[%clk 0:00:50]}  Bxf6 {[%clk 0:02:05]} 22. Red1 {[%clk 0:00:51]}  Red8 {[%clk 0:01:59]} 23. Na5 {[%clk 0:00:48]}  b6 {[%clk 0:01:58]} 24. Nb7 {[%clk 0:00:23]}  Rd7 {[%clk 0:01:57]} 25. Nxd6 {[%clk 0:00:22]}  Bxa2 {[%clk 0:01:48]} 26. Rbc1 {[%clk 0:00:22]}  Rad8 {[%clk 0:01:43]} 27. Bf4 {[%clk 0:00:21]}  Bb3 {[%clk 0:01:32]} 28. Rd3 {[%clk 0:00:19]}  Be6 {[%clk 0:01:31]} 29. e5 {[%clk 0:00:19]}  Be7 {[%clk 0:01:29]} 30. Rdc3 {[%clk 0:00:10]}  f6 {[%clk 0:01:26]} 31. Ne4 {[%clk 0:00:10]}  fxe5 {[%clk 0:01:20]} 32. Bxe5 {[%clk 0:00:09]}  Rd1+ {[%clk 0:01:05]} 33. Rxd1 {[%clk 0:00:08]}  Rxd1+ {[%clk 0:01:06]} 34. Kh2 {[%clk 0:00:09]}  Re1 {[%clk 0:01:02]} 35. Re3 {[%clk 0:00:04]}  Rxe3 {[%clk 0:01:01]} 36. fxe3 {[%clk 0:00:04]}  Kf7 {[%clk 0:00:57]} 37. Nd6+ {[%clk 0:00:05]}  Bxd6 {[%clk 0:00:55]} 38. Bxd6 {[%clk 0:00:05]}  Bd5 {[%clk 0:00:55]} 39. Kg3 {[%clk 0:00:06]}  Ke6 {[%clk 0:00:55]} 40. Bb8 {[%clk 0:00:06]}  Kd7 {[%clk 0:00:48]} 41. Bxa7 {[%clk 0:00:07]}  Kc7 {[%clk 0:00:48]} 42. Kh4 {[%clk 0:00:04]}  Bxg2 {[%clk 0:00:45]} 43. Kg4 {[%clk 0:00:04]}  Kb7 {[%clk 0:00:43]} 44. Bxb6 {[%clk 0:00:05]}  Kxb6 {[%clk 0:00:43]} 45. h4 {[%clk 0:00:06]}  h5+ {[%clk 0:00:39]} 46. Kg5 {[%clk 0:00:07]}  Be4 {[%clk 0:00:39]} 47. Kf4 {[%clk 0:00:07]}  Bc2 {[%clk 0:00:39]} 48. e4 {[%clk 0:00:08]}  Kc5 {[%clk 0:00:39]} 49. Ke5 {[%clk 0:00:09]}  Kc4 {[%clk 0:00:35]} 50. Kf4 {[%clk 0:00:08]}  Kd4 {[%clk 0:00:35]} 51. Kg5 {[%clk 0:00:09]}  Bxe4 {[%clk 0:00:34]} 52. Kh6 {[%clk 0:00:10]}  Ke3 {[%clk 0:00:33]} 53. Kg5 {[%clk 0:00:10]} 0-1


[Site "https://www.chess.com"]

[Event "Titled Tuesday Blitz August 1 Early 2023"]
[White "Di Nicolantonio, Lucas"]
[Black "Morefield, Jason"]
[WhiteFideId "680460"]
[BlackFideId "30920825"]
[WhiteElo "2519"]
[BlackElo "2702"]
[Result "0-1"]
[Round "3"]
[TimeControl "180+1"]
[Date "2023.08.01"]
[WhiteClock "0:00:16"]
[BlackClock "0:01:27"]
[Board "67"]

1. Nf3 {[%clk 0:03:00]}  Nf6 {[%clk 0:02:59]} 2. c4 {[%clk 0:03:00]}  e6 {[%clk 0:02:58]} 3. Nc3 {[%clk 0:03:01]}  d5 {[%clk 0:02:59]} 4. e3 {[%clk 0:03:01]}  c6 {[%clk 0:02:58]} 5. b3 {[%clk 0:03:02]}  Nbd7 {[%clk 0:02:58]} 6. Bb2 {[%clk 0:03:02]}  b6 {[%clk 0:02:59]} 7. Be2 {[%clk 0:03:01]}  Bb7 {[%clk 0:02:59]} 8. Qc2 {[%clk 0:03:01]}  Rc8 {[%clk 0:02:59]} 9. d4 {[%clk 0:03:00]}  c5 {[%clk 0:02:59]} 10. cxd5 {[%clk 0:02:58]}  cxd4 {[%clk 0:02:59]} 11. Nxd4 {[%clk 0:02:59]}  Nxd5 {[%clk 0:02:59]} 12. a3 {[%clk 0:02:09]}  Nxc3 {[%clk 0:02:49]} 13. Bxc3 {[%clk 0:02:10]}  Bxg2 {[%clk 0:02:43]} 14. Rg1 {[%clk 0:02:06]}  Bb7 {[%clk 0:02:41]} 15. Nxe6 {[%clk 0:01:33]}  fxe6 {[%clk 0:02:26]} 16. Bh5+ {[%clk 0:01:33]}  Ke7 {[%clk 0:02:26]} 17. Bb4+ {[%clk 0:01:32]}  Nc5 {[%clk 0:02:18]} 18. Rd1 {[%clk 0:01:32]}  Qc7 {[%clk 0:02:12]} 19. Qc4 {[%clk 0:01:22]}  Qe5 {[%clk 0:01:58]} 20. Qh4+ {[%clk 0:00:53]}  Qf6 {[%clk 0:01:58]} 21. Qg3 {[%clk 0:00:54]}  e5 {[%clk 0:01:50]} 22. Qg4 {[%clk 0:00:50]}  Rd8 {[%clk 0:01:46]} 23. Ke2 {[%clk 0:00:38]}  Ba6+ {[%clk 0:01:33]} 24. Ke1 {[%clk 0:00:32]}  g6 {[%clk 0:01:28]} 25. Bxc5+ {[%clk 0:00:28]}  bxc5 {[%clk 0:01:29]} 26. Rxd8 {[%clk 0:00:24]}  Kxd8 {[%clk 0:01:29]} 27. Qa4 {[%clk 0:00:16]}  gxh5 {[%clk 0:01:27]} 0-1


[Site "https://www.chess.com"]

[Event "Titled Tuesday Blitz August 1 Early 2023"]
[White "NicolaiMaxime"]
[Black "Koellner, Ruben Gideon"]
[BlackFideId "12993093"]
[WhiteElo "2501"]
[BlackElo "2692"]
[Result "0-1"]
[Round "3"]
[TimeControl "180+1"]
[Date "2023.08.01"]
[WhiteClock "0:00:19"]
[BlackClock "0:00:19"]
[Board "68"]

1. e4 {[%clk 0:03:00]}  d6 {[%clk 0:03:00]} 2. b3 {[%clk 0:02:59]}  Nf6 {[%clk 0:03:00]} 3. d3 {[%clk 0:02:59]}  e5 {[%clk 0:03:01]} 4. Bb2 {[%clk 0:02:58]}  Be7 {[%clk 0:03:01]} 5. Nd2 {[%clk 0:02:58]}  c5 {[%clk 0:03:02]} 6. g3 {[%clk 0:02:58]}  Nc6 {[%clk 0:03:02]} 7. Bg2 {[%clk 0:02:58]}  a5 {[%clk 0:03:02]} 8. a4 {[%clk 0:02:58]}  Be6 {[%clk 0:03:02]} 9. Ne2 {[%clk 0:02:58]}  Nd4 {[%clk 0:03:02]} 10. Nc3 {[%clk 0:02:56]}  O-O {[%clk 0:03:01]} 11. O-O {[%clk 0:02:56]}  Qd7 {[%clk 0:02:59]} 12. Nd5 {[%clk 0:02:53]}  Bg4 {[%clk 0:02:26]} 13. Nxf6+ {[%clk 0:02:42]}  Bxf6 {[%clk 0:02:26]} 14. f3 {[%clk 0:02:42]}  Be6 {[%clk 0:02:26]} 15. Nc4 {[%clk 0:02:38]}  Bxc4 {[%clk 0:02:21]} 16. bxc4 {[%clk 0:02:36]}  g6 {[%clk 0:02:15]} 17. Bxd4 {[%clk 0:02:35]}  cxd4 {[%clk 0:02:10]} 18. Qb1 {[%clk 0:02:32]}  Bg5 {[%clk 0:02:07]} 19. f4 {[%clk 0:02:31]}  Bh6 {[%clk 0:02:06]} 20. h3 {[%clk 0:02:29]}  Qe7 {[%clk 0:02:03]} 21. f5 {[%clk 0:02:06]}  Qc7 {[%clk 0:01:51]} 22. Qb5 {[%clk 0:02:02]}  Bd2 {[%clk 0:01:45]} 23. Rab1 {[%clk 0:01:50]}  Bb4 {[%clk 0:01:45]} 24. h4 {[%clk 0:01:44]}  Ra6 {[%clk 0:01:44]} 25. Qd5 {[%clk 0:01:41]}  Rc6 {[%clk 0:01:44]} 26. fxg6 {[%clk 0:01:25]}  hxg6 {[%clk 0:01:43]} 27. Rf6 {[%clk 0:01:25]}  Kg7 {[%clk 0:01:31]} 28. Rbf1 {[%clk 0:01:21]}  Qe7 {[%clk 0:01:25]} 29. h5 {[%clk 0:01:14]}  gxh5 {[%clk 0:01:17]} 30. c5 {[%clk 0:00:56]}  Qxf6 {[%clk 0:01:05]} 31. Rxf6 {[%clk 0:00:51]}  Kxf6 {[%clk 0:01:06]} 32. cxd6 {[%clk 0:00:48]}  Rxd6 {[%clk 0:01:07]} 33. Qxb7 {[%clk 0:00:43]}  Rg8 {[%clk 0:01:04]} 34. Kh2 {[%clk 0:00:42]}  Be1 {[%clk 0:00:59]} 35. Qc7 {[%clk 0:00:39]}  Bxg3+ {[%clk 0:00:47]} 36. Kh1 {[%clk 0:00:38]}  Ra6 {[%clk 0:00:24]} 37. c3 {[%clk 0:00:38]}  dxc3 {[%clk 0:00:20]} 38. Qxc3 {[%clk 0:00:39]}  Bf2 {[%clk 0:00:16]} 39. Qd2 {[%clk 0:00:30]}  Bd4 {[%clk 0:00:14]} 40. Qh6+ {[%clk 0:00:29]}  Rg6 {[%clk 0:00:14]} 41. Qxh5 {[%clk 0:00:30]}  Kg7 {[%clk 0:00:14]} 42. Qf5 {[%clk 0:00:27]}  Raf6 {[%clk 0:00:12]} 43. Qc8 {[%clk 0:00:23]}  Rh6+ {[%clk 0:00:12]} 44. Bh3 {[%clk 0:00:23]}  Rh8 {[%clk 0:00:12]} 45. Qg4+ {[%clk 0:00:22]}  Rg6 {[%clk 0:00:13]} 46. Qf5 {[%clk 0:00:22]}  Rg3 {[%clk 0:00:11]} 47. Kh2 {[%clk 0:00:10]}  Rhxh3+ {[%clk 0:00:12]} 48. Qxh3 {[%clk 0:00:10]}  Rxh3+ {[%clk 0:00:12]} 49. Kxh3 {[%clk 0:00:11]}  Kf6 {[%clk 0:00:13]} 50. Kg4 {[%clk 0:00:12]}  Ke6 {[%clk 0:00:14]} 51. Kg5 {[%clk 0:00:12]}  Kd6 {[%clk 0:00:14]} 52. Kf6 {[%clk 0:00:13]}  Kc5 {[%clk 0:00:15]} 53. Kxf7 {[%clk 0:00:14]}  Kb4 {[%clk 0:00:16]} 54. Ke6 {[%clk 0:00:14]}  Kxa4 {[%clk 0:00:17]} 55. Kd5 {[%clk 0:00:15]}  Kb3 {[%clk 0:00:18]} 56. Kc6 {[%clk 0:00:15]}  a4 {[%clk 0:00:18]} 57. Kb5 {[%clk 0:00:16]}  a3 {[%clk 0:00:19]} 58. Ka5 {[%clk 0:00:16]}  a2 {[%clk 0:00:20]} 59. Kb5 {[%clk 0:00:17]}  a1=Q {[%clk 0:00:20]} 60. Kc6 {[%clk 0:00:18]}  Qa6+ {[%clk 0:00:20]} 61. Kd5 {[%clk 0:00:18]}  Qb5+ {[%clk 0:00:21]} 62. Ke6 {[%clk 0:00:19]}  Qxd3 {[%clk 0:00:20]} 63. Kd6 {[%clk 0:00:20]}  Qxe4 {[%clk 0:00:20]} 64. Kd7 {[%clk 0:00:21]}  Qd5+ {[%clk 0:00:19]} 65. Kc7 {[%clk 0:00:22]}  Qe6 {[%clk 0:00:19]} 66. Kb7 {[%clk 0:00:21]}  Qb6+ {[%clk 0:00:18]} 67. Kc8 {[%clk 0:00:19]}  Qa7 {[%clk 0:00:19]} 68. Kd8 {[%clk 0:00:19]}  Kc4 {[%clk 0:00:20]} 69. Ke8 {[%clk 0:00:20]}  Kd5 {[%clk 0:00:21]} 70. Kd8 {[%clk 0:00:20]}  Ke6 {[%clk 0:00:22]} 71. Kc8 {[%clk 0:00:18]}  e4 {[%clk 0:00:22]} 72. Kd8 {[%clk 0:00:18]}  e3 {[%clk 0:00:22]} 73. Kc8 {[%clk 0:00:18]}  e2 {[%clk 0:00:23]} 74. Kd8 {[%clk 0:00:19]}  e1=Q {[%clk 0:00:23]} 75. Kc8 {[%clk 0:00:19]}  Kd6 {[%clk 0:00:21]} 76. Kd8 {[%clk 0:00:19]}  Qee7+ {[%clk 0:00:20]} 77. Kc8 {[%clk 0:00:19]}  Qab7# {[%clk 0:00:19]} 0-1


[Site "https://www.chess.com"]

[Event "Titled Tuesday Blitz August 1 Early 2023"]
[White "Schlecht, Daniel, Dr."]
[Black "Rendle, Thomas E"]
[WhiteFideId "4623959"]
[BlackFideId "408760"]
[WhiteElo "2437"]
[BlackElo "2674"]
[Result "0-1"]
[Round "3"]
[TimeControl "180+1"]
[Date "2023.08.01"]
[WhiteClock "0:02:51"]
[BlackClock "0:02:51"]
[Board "69"]

1. d4 {[%clk 0:03:00]}  e6 {[%clk 0:02:59]} 2. c4 {[%clk 0:03:00]}  f5 {[%clk 0:02:59]} 3. g3 {[%clk 0:02:59]}  Nf6 {[%clk 0:02:59]} 4. Bg2 {[%clk 0:03:00]}  Be7 {[%clk 0:02:59]} 5. Nf3 {[%clk 0:03:00]}  O-O {[%clk 0:02:59]} 6. O-O {[%clk 0:03:00]}  d6 {[%clk 0:03:00]} 7. b3 {[%clk 0:03:00]}  a5 {[%clk 0:02:58]} 8. a3 {[%clk 0:03:00]}  Qe8 {[%clk 0:02:54]} 9. Bb2 {[%clk 0:03:00]}  Nbd7 {[%clk 0:02:54]} 10. e3 {[%clk 0:02:57]}  Qh5 {[%clk 0:02:52]} 11. Ne1 {[%clk 0:02:51]}  Qxd1 {[%clk 0:02:51]} 0-1


[Site "https://www.chess.com"]

[Event "Titled Tuesday Blitz August 1 Early 2023"]
[White "Wieczorek, Oskar"]
[Black "Santeramo, Alessia Carmen"]
[WhiteFideId "1133950"]
[BlackFideId "850810"]
[WhiteElo "2634"]
[BlackElo "2385"]
[Result "1-0"]
[Round "3"]
[TimeControl "180+1"]
[Date "2023.08.01"]
[WhiteClock "0:00:56"]
[BlackClock "0:00:34"]
[Board "72"]

1. e4 {[%clk 0:03:00]}  e5 {[%clk 0:02:56]} 2. Nf3 {[%clk 0:02:56]}  Nc6 {[%clk 0:02:55]} 3. Nc3 {[%clk 0:02:56]}  Nf6 {[%clk 0:02:55]} 4. h3 {[%clk 0:02:56]}  Bc5 {[%clk 0:02:50]} 5. Nxe5 {[%clk 0:02:54]}  Nxe5 {[%clk 0:02:50]} 6. d4 {[%clk 0:02:54]}  Bd6 {[%clk 0:02:50]} 7. dxe5 {[%clk 0:02:54]}  Bxe5 {[%clk 0:02:51]} 8. Bd3 {[%clk 0:02:54]}  O-O {[%clk 0:02:49]} 9. O-O {[%clk 0:02:52]}  Bxc3 {[%clk 0:02:33]} 10. bxc3 {[%clk 0:02:51]}  d6 {[%clk 0:02:34]} 11. Bg5 {[%clk 0:02:43]}  h6 {[%clk 0:02:34]} 12. Bh4 {[%clk 0:02:43]}  Qe7 {[%clk 0:02:34]} 13. f4 {[%clk 0:02:34]}  Qe6 {[%clk 0:02:34]} 14. Qf3 {[%clk 0:02:28]}  Nd7 {[%clk 0:02:30]} 15. Rae1 {[%clk 0:02:09]}  Qxa2 {[%clk 0:02:25]} 16. Qg3 {[%clk 0:01:48]}  Kh8 {[%clk 0:02:13]} 17. Kh1 {[%clk 0:01:39]}  a5 {[%clk 0:02:12]} 18. e5 {[%clk 0:01:31]}  Nc5 {[%clk 0:02:02]} 19. Bf6 {[%clk 0:01:19]}  Rg8 {[%clk 0:01:27]} 20. Qh4 {[%clk 0:01:10]}  Re8 {[%clk 0:00:36]} 21. Qxh6+ {[%clk 0:01:05]}  Kg8 {[%clk 0:00:37]} 22. Bh7+ {[%clk 0:00:59]}  Kf8 {[%clk 0:00:34]} 23. Qxg7# {[%clk 0:00:56]} 1-0


[Site "https://www.chess.com"]

[Event "Titled Tuesday Blitz August 1 Early 2023"]
[White "Mendez Fortes, Eduardo Jesus"]
[Black "Jahnz, Fabian"]
[WhiteFideId "3502376"]
[BlackFideId "4653300"]
[WhiteElo "2572"]
[BlackElo "2259"]
[Result "0-1"]
[Round "3"]
[TimeControl "180+1"]
[Date "2023.08.01"]
[WhiteClock "0:00:59"]
[BlackClock "0:00:53"]
[Board "75"]

1. e4 {[%clk 0:03:00]}  c6 {[%clk 0:02:59]} 2. d4 {[%clk 0:03:00]}  d5 {[%clk 0:03:00]} 3. e5 {[%clk 0:03:01]}  Bf5 {[%clk 0:03:00]} 4. Nf3 {[%clk 0:03:01]}  e6 {[%clk 0:02:59]} 5. Be2 {[%clk 0:03:01]}  Ne7 {[%clk 0:03:00]} 6. O-O {[%clk 0:03:00]}  Ng6 {[%clk 0:02:58]} 7. Nbd2 {[%clk 0:02:56]}  Nd7 {[%clk 0:02:58]} 8. Nb3 {[%clk 0:02:56]}  Be7 {[%clk 0:02:58]} 9. g3 {[%clk 0:02:56]}  O-O {[%clk 0:02:52]} 10. h4 {[%clk 0:02:55]}  Bg4 {[%clk 0:02:44]} 11. Ng5 {[%clk 0:02:32]}  Bxe2 {[%clk 0:02:39]} 12. Qxe2 {[%clk 0:02:33]}  h6 {[%clk 0:02:29]} 13. Nh3 {[%clk 0:02:31]}  Re8 {[%clk 0:02:11]} 14. Qh5 {[%clk 0:02:26]}  c5 {[%clk 0:02:07]} 15. c3 {[%clk 0:02:25]}  a5 {[%clk 0:02:01]} 16. f4 {[%clk 0:02:22]}  a4 {[%clk 0:01:59]} 17. Nd2 {[%clk 0:02:22]}  cxd4 {[%clk 0:01:59]} 18. cxd4 {[%clk 0:02:22]}  Ndf8 {[%clk 0:01:40]} 19. Nf3 {[%clk 0:02:01]}  a3 {[%clk 0:01:10]} 20. b3 {[%clk 0:01:59]}  Rc8 {[%clk 0:01:08]} 21. g4 {[%clk 0:01:42]}  Nxh4 {[%clk 0:01:05]} 22. Nxh4 {[%clk 0:01:41]}  Bxh4 {[%clk 0:01:06]} 23. g5 {[%clk 0:01:41]}  hxg5 {[%clk 0:01:06]} 24. fxg5 {[%clk 0:01:41]}  Ng6 {[%clk 0:00:59]} 25. Bxa3 {[%clk 0:01:10]}  Rc3 {[%clk 0:00:58]} 26. Rac1 {[%clk 0:01:05]}  Rxh3 {[%clk 0:00:56]} 27. Rf3 {[%clk 0:01:01]}  Bf2+ {[%clk 0:00:53]} 28. Kxf2 {[%clk 0:00:59]}  Rxh5 {[%clk 0:00:53]} 0-1


[Site "https://www.chess.com"]

[Event "Titled Tuesday Blitz August 1 Early 2023"]
[White "Kramnik, Vladimir"]
[Black "Sreyas Payyappat"]
[WhiteFideId "4101588"]
[BlackFideId "46674969"]
[WhiteElo "2982"]
[BlackElo "2513"]
[Result "0-1"]
[Round "3"]
[TimeControl "180+1"]
[Date "2023.08.01"]
[WhiteClock "0:00:00"]
[BlackClock "0:00:05"]
[Board "77"]

1. e4 {[%clk 0:03:00]}  c6 {[%clk 0:02:59]} 2. d4 {[%clk 0:02:59]}  d5 {[%clk 0:03:00]} 3. exd5 {[%clk 0:02:59]}  cxd5 {[%clk 0:03:01]} 4. Bd3 {[%clk 0:02:59]}  Nc6 {[%clk 0:03:00]} 5. c3 {[%clk 0:02:59]}  Qc7 {[%clk 0:03:00]} 6. Na3 {[%clk 0:02:55]}  a6 {[%clk 0:02:53]} 7. Nc2 {[%clk 0:02:55]}  e5 {[%clk 0:02:52]} 8. dxe5 {[%clk 0:02:54]}  Nxe5 {[%clk 0:02:52]} 9. Nf3 {[%clk 0:02:49]}  Bg4 {[%clk 0:02:49]} 10. Be2 {[%clk 0:02:49]}  Bxf3 {[%clk 0:02:39]} 11. Bxf3 {[%clk 0:02:48]}  Nf6 {[%clk 0:02:35]} 12. O-O {[%clk 0:02:46]}  Bd6 {[%clk 0:02:34]} 13. Bxd5 {[%clk 0:02:42]}  O-O-O {[%clk 0:02:25]} 14. Ne3 {[%clk 0:02:18]}  h5 {[%clk 0:02:09]} 15. Bb3 {[%clk 0:01:33]}  Neg4 {[%clk 0:02:00]} 16. Qf3 {[%clk 0:01:22]}  Bxh2+ {[%clk 0:01:18]} 17. Kh1 {[%clk 0:01:20]}  Be5 {[%clk 0:01:10]} 18. Nc4 {[%clk 0:01:07]}  Kb8 {[%clk 0:00:33]} 19. Nxe5 {[%clk 0:01:05]}  Nxe5 {[%clk 0:00:34]} 20. Qf4 {[%clk 0:00:54]}  Nd5 {[%clk 0:00:29]} 21. Bxd5 {[%clk 0:00:48]}  Rxd5 {[%clk 0:00:29]} 22. Be3 {[%clk 0:00:48]}  f6 {[%clk 0:00:24]} 23. f3 {[%clk 0:00:42]}  Re8 {[%clk 0:00:23]} 24. Bg1 {[%clk 0:00:39]}  Nd3 {[%clk 0:00:20]} 25. Qxc7+ {[%clk 0:00:38]}  Kxc7 {[%clk 0:00:21]} 26. Rad1 {[%clk 0:00:38]}  Re2 {[%clk 0:00:21]} 27. b3 {[%clk 0:00:28]}  Rxa2 {[%clk 0:00:20]} 28. Bh2+ {[%clk 0:00:24]}  Kc6 {[%clk 0:00:20]} 29. c4 {[%clk 0:00:24]}  Rd7 {[%clk 0:00:20]} 30. Bg1 {[%clk 0:00:24]}  Rb2 {[%clk 0:00:20]} 31. Rb1 {[%clk 0:00:21]}  Rxb1 {[%clk 0:00:18]} 32. Rxb1 {[%clk 0:00:22]}  Nb4 {[%clk 0:00:19]} 33. Re1 {[%clk 0:00:20]}  Rd3 {[%clk 0:00:19]} 34. Re6+ {[%clk 0:00:18]}  Kc7 {[%clk 0:00:17]} 35. Bh2+ {[%clk 0:00:17]}  Kc8 {[%clk 0:00:10]} 36. Bg3 {[%clk 0:00:16]}  Nc6 {[%clk 0:00:09]} 37. Re8+ {[%clk 0:00:15]}  Rd8 {[%clk 0:00:10]} 38. Re3 {[%clk 0:00:12]}  g5 {[%clk 0:00:10]} 39. Kh2 {[%clk 0:00:12]}  h4 {[%clk 0:00:10]} 40. Be1 {[%clk 0:00:12]}  Nd4 {[%clk 0:00:09]} 41. Bc3 {[%clk 0:00:11]}  Kc7 {[%clk 0:00:10]} 42. Re7+ {[%clk 0:00:11]}  Kc6 {[%clk 0:00:09]} 43. Rf7 {[%clk 0:00:11]}  Rd6 {[%clk 0:00:06]} 44. b4 {[%clk 0:00:10]}  b5 {[%clk 0:00:06]} 45. c5 {[%clk 0:00:10]}  Rd7 {[%clk 0:00:04]} 46. Rxf6+ {[%clk 0:00:10]}  Kd5 {[%clk 0:00:05]} 47. Rxa6 {[%clk 0:00:10]}  Kc4 {[%clk 0:00:04]} 48. Bxd4 {[%clk 0:00:10]}  Rxd4 {[%clk 0:00:05]} 49. c6 {[%clk 0:00:10]}  Kxb4 {[%clk 0:00:05]} 50. Ra7 {[%clk 0:00:08]}  Rc4 {[%clk 0:00:05]} 51. Rg7 {[%clk 0:00:07]}  Rxc6 {[%clk 0:00:03]} 52. Rxg5 {[%clk 0:00:07]}  Ka4 {[%clk 0:00:04]} 53. Rg4+ {[%clk 0:00:07]}  Rc4 {[%clk 0:00:04]} 54. f4 {[%clk 0:00:07]}  b4 {[%clk 0:00:04]} 55. Rxh4 {[%clk 0:00:07]}  b3 {[%clk 0:00:05]} 56. Rh8 {[%clk 0:00:06]}  b2 {[%clk 0:00:04]} 57. Ra8+ {[%clk 0:00:06]}  Kb3 {[%clk 0:00:05]} 58. Rb8+ {[%clk 0:00:00]}  Rb4 {[%clk 0:00:05]} 0-1


[Site "https://www.chess.com"]